bitfinex/quotes_BTCUSD_20240730
["timestamp","ask_amount","ask_price","bid_price","bid_amount"]
[1722312026260,1.26229377,66704.0,66703.0,0.09594694]
[1722312026459,1.26229377,66704.0,66703.0,0.02934694]
[1722312026600,1.26229377,66704.0,66688.0,0.000913]
[1722312026601,0.0753,66689.0,66688.0,0.000913]
[1722312026805,0.01,66696.0,66688.0,0.15154604]
[1722312026806,0.0753,66695.0,66688.0,0.15154604]
[1722312027018,0.55813737,66701.0,66688.0,0.15154604]
[1722312027019,0.46831382,66701.0,66694.0,0.16084716]
[1722312027320,0.46831382,66701.0,66700.0,1.05348]
[1722312027520,0.46831382,66701.0,66700.0,1.39437453]
[1722312027811,0.46831382,66701.0,66700.0,1.63425453]
[1722312027997,0.49182762,66701.0,66700.0,1.63425453]
[1722312028194,0.49182762,66701.0,66700.0,1.65725453]
[1722312028400,0.49182762,66701.0,66700.0,1.41737453]
[1722312028843,0.01100025,66704.0,66703.0,0.62155818]
[1722312029014,0.01100025,66704.0,66703.0,0.77219122]
[1722312029835,0.01100025,66704.0,66703.0,0.89674457]
[1722312030178,0.01100025,66704.0,66703.0,1.14661357]
[1722312030657,0.01100025,66704.0,66703.0,1.02206022]
[1722312030865,0.01100025,66704.0,66703.0,1.14660772]
[1722312031231,0.01100025,66704.0,66703.0,1.02206022]
[1722312031462,0.01100025,66704.0,66703.0,1.13660859]
[1722312031655,0.01100025,66704.0,66703.0,1.14460859]
[1722312031656,0.03451362,66704.0,66703.0,1.14460859]
[1722312032041,0.00800025,66704.0,66703.0,1.13660859]
[1722312032245,0.00800025,66704.0,66703.0,1.14660859]
[1722312034049,0.00800025,66704.0,66703.0,1.14660709]
[1722312034452,0.00800025,66704.0,66703.0,1.02206022]
[1722312034662,0.00800025,66704.0,66703.0,1.14660709]
[1722312035524,0.03151362,66704.0,66703.0,1.15460709]
[1722312036291,0.03151362,66704.0,66703.0,1.15461171]
[1722312037352,0.03151362,66704.0,66703.0,1.03006022]
[1722312037557,0.03151362,66704.0,66703.0,1.15460677]
[1722312040583,0.03151362,66704.0,66703.0,1.03006022]
[1722312040785,0.03151362,66704.0,66703.0,1.15460825]
[1722312040985,0.00800025,66704.0,66703.0,1.15460825]
[1722312043977,0.00800025,66704.0,66703.0,1.1546085]
[1722312044616,0.0315134,66704.0,66703.0,1.1546085]
[1722312045271,0.1091134,66704.0,66703.0,0.9147395]
[1722312045474,0.1631134,66704.0,66703.0,0.28436846]
[1722312045676,0.1631134,66704.0,66703.0,0.03988618]
[1722312045889,0.1631134,66704.0,66703.0,0.15982018]
[1722312046504,0.1631134,66704.0,66703.0,0.03988618]
[1722312047175,0.13960025,66704.0,66703.0,0.03988618]
[1722312047596,0.25953225,66704.0,66703.0,0.03988618]
[1722312048780,0.49939725,66704.0,66703.0,0.03988618]
[1722312049415,0.13960025,66704.0,66703.0,0.03988618]
[1722312050498,0.16311537,66704.0,66703.0,0.15982018]
[1722312050704,0.16311537,66704.0,66703.0,0.39968918]
[1722312051014,0.16311537,66704.0,66703.0,0.15982018]
[1722312053650,0.13960025,66704.0,66703.0,0.03988618]
[1722312054049,0.25953225,66704.0,66703.0,0.03988618]
[1722312055846,0.49939725,66704.0,66703.0,0.03988618]
[1722312056254,0.54429433,66704.0,66703.0,0.03988618]
[1722312056679,0.56780963,66704.0,66703.0,0.03988618]
[1722312057085,0.56781186,66704.0,66703.0,0.03988618]
[1722312057497,0.54429656,66704.0,66703.0,0.03988618]
[1722312058564,0.30443156,66704.0,66703.0,0.03988618]
[1722312058781,0.25953225,66704.0,66703.0,0.03988618]
[1722312060315,0.73926225,66704.0,66703.0,0.03988618]
[1722312060514,0.25953225,66704.0,66703.0,0.03988618]
[1722312061100,0.34885756,66704.0,66703.0,0.03988618]
[1722312061305,0.41621331,66704.0,66703.0,0.03988618]
[1722312061523,0.34971746,66704.0,66703.0,0.03988618]
[1722312061942,0.35035573,66704.0,66703.0,0.03988618]
[1722312062137,0.37387124,66704.0,66703.0,0.03988618]
[1722312062478,0.30522205,66704.0,66703.0,0.03988618]
[1722312062634,0.30522183,66704.0,66703.0,0.03988618]
[1722312063198,0.30522172,66704.0,66703.0,0.03988618]
[1722312063986,0.41798424,66704.0,66703.0,0.03988618]
[1722312064187,0.41752587,66704.0,66703.0,0.03988618]
[1722312064389,0.32767645,66704.0,66703.0,0.03988618]
[1722312064591,0.26031225,66704.0,66703.0,0.03988618]
[1722312064923,0.14038025,66704.0,66703.0,0.03988618]
[1722312065267,0.16389568,66704.0,66703.0,0.03988618]
[1722312066331,0.70326124,66704.0,66703.0,0.03988618]
[1722312066568,0.46339624,66704.0,66703.0,0.03988618]
[1722312067593,0.70326124,66704.0,66703.0,0.03988618]
[1722312067943,1.05839416,66704.0,66703.0,0.03988618]
[1722312068054,0.92257274,66704.0,66703.0,0.03988618]
[1722312068263,0.93257274,66704.0,66703.0,0.03988618]
[1722312068462,0.92257274,66704.0,66703.0,0.03988618]
[1722312068663,0.92257274,66704.0,66703.0,0.03188618]
[1722312069092,0.84193333,66704.0,66703.0,0.03188618]
[1722312069494,0.84193333,66704.0,66703.0,0.02188618]
[1722312069709,0.83893333,66704.0,66703.0,0.02188618]
[1722312069910,0.84093333,66704.0,66703.0,0.02188618]
[1722312070108,0.83893333,66704.0,66703.0,0.02188618]
[1722312070974,0.92626885,66704.0,66703.0,0.02188618]
[1722312071101,0.93226885,66704.0,66703.0,0.02288618]
[1722312071498,0.85043979,66704.0,66703.0,0.02288618]
[1722312071698,0.85043979,66704.0,66703.0,0.02188618]
[1722312071699,0.84643979,66704.0,66703.0,0.02188618]
[1722312071936,0.85143979,66704.0,66703.0,0.02288618]
[1722312072380,0.84143979,66704.0,66703.0,0.02288618]
[1722312072514,0.86495656,66704.0,66703.0,0.02288618]
[1722312072901,0.84143979,66704.0,66703.0,0.02288618]
[1722312074424,0.84343979,66704.0,66703.0,0.02288618]
[1722312075737,0.85343979,66704.0,66703.0,0.02288618]
[1722312075881,0.87695656,66704.0,66703.0,0.02288618]
[1722312076411,0.85343979,66704.0,66703.0,0.02288618]
[1722312077021,1.24545819,66704.0,66703.0,0.02288618]
[1722312077929,1.38014939,66704.0,66703.0,0.02288618]
[1722312078502,1.24545819,66704.0,66703.0,0.02288618]
[1722312079254,1.38043008,66704.0,66703.0,0.02288618]
[1722312079460,1.24574649,66704.0,66703.0,0.02288618]
[1722312079638,1.26923602,66704.0,66703.0,0.02288618]
[1722312080041,1.2498708,66704.0,66703.0,0.02288618]
[1722312080259,1.26905927,66704.0,66703.0,0.02288618]
[1722312080413,1.2498708,66704.0,66703.0,0.02288618]
[1722312080626,1.116822,66704.0,66703.0,0.02288618]
[1722312080834,1.13601078,66704.0,66703.0,0.02288618]
[1722312081342,1.10754047,66704.0,66703.0,0.02288618]
[1722312081684,1.08833774,66704.0,66703.0,0.02288618]
[1722312083662,0.83847274,66704.0,66703.0,0.02288618]
[1722312084068,0.95070834,66704.0,66703.0,0.02288618]
[1722312084842,0.89670834,66704.0,66703.0,0.02288618]
[1722312085051,0.59972735,66704.0,66703.0,0.02288618]
[1722312085249,0.12769475,66704.0,66703.0,0.10518618]
[1722312085471,0.12769475,66704.0,66703.0,0.17178618]
[1722312085472,0.23845944,66704.0,66703.0,0.17178618]
[1722312085759,0.56812924,66704.0,66703.0,0.08948618]
[1722312085960,0.47832444,66704.0,66703.0,0.02288618]
[1722312087294,0.83044544,66704.0,66703.0,0.02288618]
[1722312087456,0.82092364,66704.0,66703.0,0.02288618]
[1722312087677,0.83048962,66704.0,66703.0,0.02288618]
[1722312088278,0.70467223,66704.0,66703.0,0.02288618]
[1722312089005,0.83817223,66704.0,66703.0,0.02288618]
[1722312089205,0.82817223,66704.0,66703.0,0.02288618]
[1722312089612,0.69467223,66704.0,66703.0,0.02288618]
[1722312091037,0.70467223,66704.0,66703.0,0.02288618]
[1722312091447,0.83945897,66704.0,66703.0,0.02288618]
[1722312092255,0.72249719,66704.0,66703.0,0.02288618]
[1722312092691,0.94453723,66704.0,66703.0,0.02288618]
[1722312092939,0.98588115,66704.0,66703.0,0.02288618]
[1722312094623,0.98581039,66704.0,66703.0,0.02288618]
[1722312095175,0.96805464,66704.0,66703.0,0.02288618]
[1722312095546,0.9860159,66704.0,66703.0,0.02288618]
[1722312096320,1.08997745,66704.0,66703.0,0.02288618]
[1722312098074,1.06646004,66704.0,66703.0,0.02288618]
[1722312098817,1.06638349,66704.0,66703.0,0.02288618]
[1722312100994,0.96242194,66704.0,66703.0,0.02288618]
[1722312102065,0.96232457,66704.0,66703.0,0.02288618]
[1722312102286,0.96214414,66704.0,66703.0,0.02288618]
[1722312104618,0.96214414,66704.0,66703.0,0.08628618]
[1722312105437,0.96248824,66704.0,66703.0,0.08628618]
[1722312105636,0.98600577,66704.0,66703.0,0.08628618]
[1722312106360,0.98600577,66704.0,66703.0,0.02288618]
[1722312106767,1.07160577,66704.0,66703.0,0.02379918]
[1722312106979,1.07243577,66704.0,66703.0,0.02379918]
[1722312107552,1.07239577,66704.0,66703.0,0.02379918]
[1722312108677,1.05430433,66704.0,66703.0,0.02379918]
[1722312108838,1.07231626,66704.0,66703.0,0.02379918]
[1722312110619,1.04879873,66704.0,66703.0,0.02379918]
[1722312111493,1.20063322,66704.0,66703.0,0.02379918]
[1722312111874,1.2007713,66704.0,66703.0,0.02379918]
[1722312112289,1.04884119,66704.0,66703.0,0.02379918]
[1722312113573,1.07235851,66704.0,66703.0,0.02379918]
[1722312115309,1.07219699,66704.0,66703.0,0.02379918]
[1722312115878,1.22417318,66704.0,66703.0,0.02379918]
[1722312116427,1.07219699,66704.0,66703.0,0.02379918]
[1722312117718,1.22417318,66704.0,66703.0,0.02379918]
[1722312118527,1.20628031,66704.0,66703.0,0.02379918]
[1722312118732,1.07208838,66704.0,66703.0,0.02379918]
[1722312119176,1.22406783,66704.0,66703.0,0.02379918]
[1722312119473,1.07209024,66704.0,66703.0,0.02379918]
[1722312120441,1.22406901,66704.0,66703.0,0.02379918]
[1722312120826,1.07209024,66704.0,66703.0,0.02379918]
[1722312121089,1.20055129,66704.0,66703.0,0.02379918]
[1722312121237,1.20059781,66704.0,66703.0,0.02379918]
[1722312121830,1.04861944,66704.0,66703.0,0.02379918]
[1722312122835,1.15807633,66704.0,66703.0,0.02379918]
[1722312123468,1.19925248,66704.0,66703.0,0.02379918]
[1722312123822,1.33125248,66704.0,66703.0,0.02379918]
[1722312124035,1.31341984,66704.0,66703.0,0.02379918]
[1722312124204,1.57079763,66704.0,66703.0,0.02379918]
[1722312124753,1.33093263,66704.0,66703.0,0.02379918]
[1722312125644,1.35445064,66704.0,66703.0,0.02379918]
[1722312126070,1.33093263,66704.0,66703.0,0.02379918]
[1722312127123,1.33105392,66704.0,66703.0,0.02379918]
[1722312127387,1.33105398,66704.0,66703.0,0.02379918]
[1722312128029,1.27705398,66704.0,66703.0,0.02379918]
[1722312128416,1.11345398,66704.0,66703.0,0.02379918]
[1722312128618,1.22257299,66704.0,66703.0,0.02379918]
[1722312129041,1.19905398,66704.0,66703.0,0.02379918]
[1722312129219,1.3497483,66704.0,66703.0,0.02379918]
[1722312130484,1.33211416,66704.0,66703.0,0.02379918]
[1722312130669,1.35018419,66704.0,66703.0,0.02379918]
[1722312131973,1.34335537,66704.0,66703.0,0.02379918]
[1722312132376,1.36687394,66704.0,66703.0,0.02379918]
[1722312133699,1.34324745,66704.0,66703.0,0.02379918]
[1722312134218,1.19255313,66704.0,66703.0,0.02379918]
[1722312135821,1.19248556,66704.0,66703.0,0.02379918]
[1722312136919,1.2161294,66704.0,66703.0,0.02379918]
[1722312137120,1.21534847,66704.0,66703.0,0.02379918]
[1722312141400,1.20564883,66704.0,66703.0,0.02379918]
[1722312141915,1.18213026,66704.0,66703.0,0.02379918]
[1722312143499,1.18191326,66704.0,66703.0,0.02379918]
[1722312145645,1.33260758,66704.0,66703.0,0.02379918]
[1722312145850,1.35612612,66704.0,66703.0,0.02379918]
[1722312146581,1.33260758,66704.0,66703.0,0.02379918]
[1722312146791,1.33278211,66704.0,66703.0,0.02379918]
[1722312147186,1.31480477,66704.0,66703.0,0.02379918]
[1722312147402,1.33278211,66704.0,66703.0,0.02379918]
[1722312147816,1.24718211,66704.0,66703.0,0.02379918]
[1722312148232,1.33278211,66704.0,66703.0,0.02379918]
[1722312149239,1.33279492,66704.0,66703.0,0.02379918]
[1722312149466,1.33279494,66704.0,66703.0,0.02379918]
[1722312149829,1.35631361,66704.0,66703.0,0.02379918]
[1722312150167,1.3560996,66704.0,66703.0,0.02379918]
[1722312151983,1.3560996,66704.0,66703.0,0.001913]
[1722312153392,1.35629981,66704.0,66703.0,0.001913]
[1722312153598,1.35630139,66704.0,66703.0,0.001913]
[1722312154653,1.1820884,66704.0,66703.0,0.001913]
[1722312156685,1.1819691,66704.0,66703.0,0.001913]
[1722312156871,1.18189933,66704.0,66703.0,0.001913]
[1722312158242,1.20189933,66704.0,66703.0,0.001913]
[1722312160089,1.20198495,66704.0,66703.0,0.001913]
[1722312160514,1.18411045,66704.0,66703.0,0.001913]
[1722312160719,1.44184998,66704.0,66703.0,0.001913]
[1722312160973,1.20198498,66704.0,66703.0,0.001913]
[1722312161916,1.22550431,66704.0,66703.0,0.001913]
[1722312162474,1.20199495,66704.0,66703.0,0.001913]
[1722312162676,1.31783381,66704.0,66703.0,0.001913]
[1722312162901,1.55769881,66704.0,66703.0,0.001913]
[1722312163321,1.55770381,66704.0,66703.0,0.001913]
[1722312164517,1.31783881,66704.0,66703.0,0.001913]
[1722312165206,1.55770381,66704.0,66703.0,0.001913]
[1722312165702,1.31783881,66704.0,66703.0,0.001913]
[1722312165840,1.55770381,66704.0,66703.0,0.001913]
[1722312166657,1.31783881,66704.0,66703.0,0.001913]
[1722312167070,1.34135797,66704.0,66703.0,0.001913]
[1722312167390,1.20199995,66704.0,66703.0,0.001913]
[1722312169820,1.22551902,66704.0,66703.0,0.001913]
[1722312170253,1.20199995,66704.0,66703.0,0.001913]
[1722312173426,1.22541226,66704.0,66703.0,0.001913]
[1722312173850,1.20762952,66704.0,66703.0,0.001913]
[1722312174175,1.22541225,66704.0,66703.0,0.001913]
[1722312174766,1.20189318,66704.0,66703.0,0.001913]
[1722312175539,1.2018458,66704.0,66703.0,0.001913]
[1722312176534,1.18411045,66704.0,66703.0,0.001913]
[1722312176736,1.09619233,66704.0,66703.0,0.001913]
[1722312176939,0.93555929,66704.0,66703.0,0.139313]
[1722312177139,0.09891329,66704.0,66703.0,0.139313]
[1722312177485,0.08123141,66704.0,66703.0,0.139313]
[1722312177980,0.10474811,66704.0,66703.0,0.139313]
[1722312178403,0.23977823,66704.0,66703.0,0.1408672]
[1722312178618,0.23977823,66704.0,66703.0,0.2608012]
[1722312178805,0.23977823,66704.0,66703.0,0.139313]
[1722312178952,0.23977823,66704.0,66703.0,0.259247]
[1722312179183,0.23977823,66704.0,66703.0,0.139313]
[1722312179379,0.08123141,66704.0,66703.0,0.139313]
[1722312179697,0.10474762,66704.0,66703.0,0.2608012]
[1722312179907,0.10474762,66704.0,66703.0,0.139313]
[1722312180107,0.08123141,66704.0,66703.0,0.139313]
[1722312180349,0.08123141,66704.0,66703.0,0.259247]
[1722312180708,0.08123141,66704.0,66703.0,0.499116]
[1722312181117,0.08123141,66704.0,66703.0,0.259247]
[1722312181317,0.08123141,66704.0,66703.0,0.2608012]
[1722312181718,0.08123141,66704.0,66703.0,0.5006702]
[1722312181933,0.08123141,66704.0,66703.0,0.499116]
[1722312182364,0.1047471,66704.0,66703.0,0.499116]
[1722312182618,0.1047471,66704.0,66703.0,0.138313]
[1722312183023,0.4645441,66704.0,66703.0,0.138313]
[1722312183224,0.7044091,66704.0,66703.0,0.000913]
[1722312183469,0.9442741,66704.0,66703.0,0.000913]
[1722312186054,0.4645441,66704.0,66703.0,0.000913]
[1722312186255,0.4645441,66704.0,66703.0,0.121513]
[1722312186256,0.1047471,66704.0,66703.0,0.121513]
[1722312186746,0.08123141,66704.0,66703.0,0.121513]
[1722312186944,0.00083,66704.0,66703.0,0.2430012]
[1722312187146,0.00083,66704.0,66703.0,0.241447]
[1722312187321,0.00083,66704.0,66703.0,0.721185]
[1722312187523,0.00083,66704.0,66703.0,0.481316]
[1722312188334,0.00083,66704.0,66703.0,0.721185]
[1722312189108,0.00083,66704.0,66703.0,0.724185]
[1722312189714,0.00083,66704.0,66703.0,0.484316]
[1722312189961,0.02434466,66704.0,66703.0,0.484316]
[1722312190139,0.02434466,66704.0,66703.0,0.244447]
[1722312190937,0.02434466,66704.0,66703.0,0.484316]
[1722312191572,0.00083,66704.0,66703.0,0.484316]
[1722312194163,0.02434472,66704.0,66703.0,0.484316]
[1722312194380,0.02434472,66704.0,66703.0,0.483316]
[1722312194825,0.02434472,66704.0,66703.0,0.484316]
[1722312195224,0.02434472,66704.0,66703.0,0.483316]
[1722312195602,0.02434472,66704.0,66703.0,0.244447]
[1722312195823,0.02434472,66704.0,66703.0,0.124513]
[1722312196047,0.02434472,66704.0,66703.0,0.0637]
[1722312196048,0.60910541,66704.0,66703.0,0.0637]
[1722312196246,0.7742314,66704.0,66703.0,0.003]
[1722312196389,0.76725469,66704.0,66703.0,0.003]
[1722312196589,0.87947822,66704.0,66703.0,0.003]
[1722312197038,0.87086481,66704.0,66703.0,0.003]
[1722312198108,0.76864128,66704.0,66703.0,0.003]
[1722312198313,1.15913932,66704.0,66703.0,0.003]
[1722312198906,1.29382845,66704.0,66703.0,0.003]
[1722312199353,1.31734714,66704.0,66703.0,0.003]
[1722312199786,1.29382845,66704.0,66703.0,0.003]
[1722312200477,1.15913932,66704.0,66703.0,0.003]
[1722312200677,1.28383522,66704.0,66703.0,0.003]
[1722312200819,1.17670655,66704.0,66703.0,0.003]
[1722312201231,1.32740087,66704.0,66703.0,0.003]
[1722312201437,1.32753629,66704.0,66703.0,0.003]
[1722312201902,1.25218913,66704.0,66703.0,0.002]
[1722312202314,1.25218913,66704.0,66703.0,0.002913]
[1722312203051,1.27570778,66704.0,66703.0,0.002913]
[1722312203255,1.10149481,66704.0,66703.0,0.002913]
[1722312204667,1.10076363,66704.0,66703.0,0.002913]
[1722312204866,1.10076363,66704.0,66703.0,0.000913]
[1722312206638,1.1242825,66704.0,66703.0,0.000913]
[1722312207634,1.10076363,66704.0,66703.0,0.000913]
[1722312207990,1.10086376,66704.0,66703.0,0.000913]
[1722312208147,1.25155808,66704.0,66703.0,0.000913]
[1722312208332,1.10086376,66704.0,66703.0,0.000913]
[1722312209676,1.10072811,66704.0,66703.0,0.000913]
[1722312211071,1.1242468,66704.0,66703.0,0.000913]
[1722312211299,1.10731085,66704.0,66703.0,0.000913]
[1722312211462,1.27497782,66704.0,66703.0,0.000913]
[1722312211920,1.25800517,66704.0,66703.0,0.000913]
[1722312212138,1.27497781,66704.0,66703.0,0.000913]
[1722312213230,1.24145912,66704.0,66703.0,0.000913]
[1722312213871,1.24151462,66704.0,66703.0,0.000913]
[1722312214028,1.0908203,66704.0,66703.0,0.000913]
[1722312214223,1.1764203,66704.0,66703.0,0.065513]
[1722312214429,1.1864203,66704.0,66703.0,0.065513]
[1722312214651,1.17676242,66704.0,66703.0,0.065513]
[1722312214826,1.18676242,66704.0,66703.0,0.065513]
[1722312215048,1.32428491,66704.0,66703.0,0.065513]
[1722312215215,1.18676242,66704.0,66703.0,0.000913]
[1722312216113,1.21028063,66704.0,66703.0,0.000913]
[1722312217056,1.18676242,66704.0,66703.0,0.000913]
[1722312217844,1.18679038,66704.0,66703.0,0.000913]
[1722312220580,1.21030867,66704.0,66703.0,0.000913]
[1722312220978,1.36100299,66704.0,66703.0,0.000913]
[1722312221380,1.36083533,66704.0,66703.0,0.000913]
[1722312224581,1.34360477,66704.0,66703.0,0.000913]
[1722312224782,1.36101719,66704.0,66703.0,0.000913]
[1722312226432,1.35101719,66704.0,66703.0,0.000913]
[1722312227747,1.34360477,66704.0,66703.0,0.000913]
[1722312228033,1.36153574,66704.0,66703.0,0.000913]
[1722312228598,1.21084142,66704.0,66703.0,0.000913]
[1722312230223,1.21084222,66704.0,66703.0,0.000913]
[1722312230904,1.18732393,66704.0,66703.0,0.000913]
[1722312231102,1.18734642,66704.0,66703.0,0.000913]
[1722312232092,1.44721142,66704.0,66703.0,0.000913]
[1722312232297,1.82651894,66704.0,66703.0,0.000913]
[1722312232575,1.67490574,66704.0,66703.0,0.000913]
[1722312232783,1.82651861,66704.0,66703.0,0.000913]
[1722312233075,1.67490574,66704.0,66703.0,0.000913]
[1722312233619,1.82651861,66704.0,66703.0,0.000913]
[1722312234095,1.62142456,66704.0,66703.0,0.000913]
[1722312234327,1.59790574,66704.0,66703.0,0.000913]
[1722312234509,1.47886477,66704.0,66703.0,0.000913]
[1722312234672,1.32817045,66704.0,66703.0,0.141213]
[1722312234875,1.17654308,66704.0,66703.0,0.141213]
[1722312235893,1.18654308,66704.0,66703.0,0.141213]
[1722312236643,1.33817045,66704.0,66703.0,0.141213]
[1722312236814,1.18654308,66704.0,66703.0,0.141213]
[1722312237525,1.16939216,66704.0,66703.0,0.141213]
[1722312237694,1.20983227,66704.0,66703.0,0.141213]
[1722312237907,1.18631398,66704.0,66703.0,0.141213]
[1722312238502,1.17631398,66704.0,66703.0,0.141213]
[1722312238888,1.28518361,66704.0,66703.0,0.141213]
[1722312239071,1.28518361,66704.0,66703.0,0.064213]
[1722312239293,1.28518361,66704.0,66703.0,0.000913]
[1722312240193,1.18631398,66704.0,66703.0,0.000913]
[1722312240730,1.16939216,66704.0,66703.0,0.000913]
[1722312240929,1.18619684,66704.0,66703.0,0.000913]
[1722312241250,1.16939216,66704.0,66703.0,0.000913]
[1722312241449,1.18619679,66704.0,66703.0,0.000913]
[1722312241970,1.28916922,66704.0,66703.0,0.000913]
[1722312242198,1.20971566,66704.0,66703.0,0.000913]
[1722312242818,1.18619679,66704.0,66703.0,0.000913]
[1722312243243,1.18617455,66704.0,66703.0,0.000913]
[1722312243651,1.17617455,66704.0,66703.0,0.000913]
[1722312245480,1.18617455,66704.0,66703.0,0.000913]
[1722312246079,1.20969312,66704.0,66703.0,0.000913]
[1722312246460,1.18650941,66704.0,66703.0,0.000913]
[1722312248996,1.17650941,66704.0,66703.0,0.000913]
[1722312249750,1.19994239,66704.0,66703.0,0.000913]
[1722312249945,1.20994239,66704.0,66703.0,0.000913]
[1722312250305,1.18642385,66704.0,66703.0,0.000913]
[1722312251366,1.17642385,66704.0,66703.0,0.000913]
[1722312251573,1.09082385,66704.0,66703.0,0.000913]
[1722312251899,1.17642385,66704.0,66703.0,0.000913]
[1722312252383,1.2128363,66704.0,66703.0,0.000913]
[1722312253042,1.19580461,66704.0,66703.0,0.000913]
[1722312253245,1.21384763,66704.0,66703.0,0.000913]
[1722312253793,1.23736604,66704.0,66703.0,0.000913]
[1722312254153,1.22384763,66704.0,66703.0,0.000913]
[1722312254666,1.21384763,66704.0,66703.0,0.000913]
[1722312256306,1.19580461,66704.0,66703.0,0.000913]
[1722312256507,1.21389097,66704.0,66703.0,0.000913]
[1722312256884,1.23740945,66704.0,66703.0,0.000913]
[1722312257809,1.24740945,66704.0,66703.0,0.000913]
[1722312258381,1.210997,66704.0,66703.0,0.000913]
[1722312258803,1.21094667,66704.0,66703.0,0.000913]
[1722312259612,1.19291057,66704.0,66703.0,0.000913]
[1722312259813,1.21063076,66704.0,66703.0,0.000913]
[1722312262003,1.20063076,66704.0,66703.0,0.000913]
[1722312262859,1.21063076,66704.0,66703.0,0.000913]
[1722312263054,1.21068714,66704.0,66703.0,0.000913]
[1722312266263,1.21064192,66704.0,66703.0,0.000913]
[1722312266465,1.21064193,66704.0,66703.0,0.000913]
[1722312267063,1.69693776,66704.0,66703.0,0.000913]
[1722312269248,1.55000693,66704.0,66703.0,0.000913]
[1722312269537,1.54986299,66704.0,66703.0,0.000913]
[1722312269757,1.54986304,66704.0,66703.0,0.000913]
[1722312270153,1.54988398,66704.0,66703.0,0.000913]
[1722312272015,1.55000482,66704.0,66703.0,0.000913]
[1722312272454,1.47050482,66704.0,66703.0,0.000913]
[1722312273075,1.47057216,66704.0,66703.0,0.000913]
[1722312273273,1.44705375,66704.0,66703.0,0.000913]
[1722312273668,1.59774807,66704.0,66703.0,0.000913]
[1722312274130,1.81949797,66704.0,66703.0,0.000913]
[1722312274839,0.01,66692.0,66688.0,0.000913]
[1722312274991,0.02,66698.0,66689.0,0.1436]
[1722312274992,0.119958,66690.0,66689.0,0.1436]
[1722312275172,0.94030471,66690.0,66689.0,0.1436]
[1722312275368,0.94030471,66690.0,66689.0,0.0624]
[1722312275369,1.27156822,66690.0,66689.0,0.0624]
[1722312275588,1.27156822,66690.0,66688.0,0.000913]
[1722312275589,0.849716,66689.0,66688.0,0.000913]
[1722312275768,1.34086675,66689.0,66688.0,0.000913]
[1722312276168,1.38539984,66689.0,66688.0,0.000913]
[1722312276378,1.50042474,66689.0,66688.0,0.000913]
[1722312276582,1.52394853,66689.0,66688.0,0.000913]
[1722312278769,1.53494853,66689.0,66688.0,0.001913]
[1722312279321,1.55494853,66689.0,66688.0,0.001913]
[1722312279513,1.55489491,66689.0,66688.0,0.001913]
[1722312279960,1.52389491,66689.0,66688.0,0.000913]
[1722312280774,1.69556987,66689.0,66688.0,0.000913]
[1722312280975,1.55286815,66689.0,66688.0,0.000913]
[1722312281178,1.68099734,66689.0,66688.0,0.000913]
[1722312281751,1.76659734,66689.0,66688.0,0.000913]
[1722312282296,1.61494436,66689.0,66688.0,0.000913]
[1722312282801,1.86657147,66689.0,66688.0,0.000913]
[1722312282997,1.71494436,66689.0,66688.0,0.000913]
[1722312283997,1.72094436,66689.0,66688.0,0.001913]
[1722312284602,1.74446824,66689.0,66688.0,0.001913]
[1722312285056,1.65886824,66689.0,66688.0,0.001913]
[1722312285287,1.74446824,66689.0,66688.0,0.001913]
[1722312285671,1.74946824,66689.0,66688.0,0.002913]
[1722312285806,1.8552616,66689.0,66688.0,0.002913]
[1722312286021,1.87967515,66689.0,66688.0,0.002913]
[1722312286232,1.85615127,66689.0,66688.0,0.002913]
[1722312286448,1.85726612,66689.0,66688.0,0.002913]
[1722312286848,1.80326612,66689.0,66688.0,0.002913]
[1722312287070,1.78326612,66689.0,66688.0,0.002913]
[1722312287293,1.72486612,66689.0,66688.0,0.002913]
[1722312288086,1.70486612,66689.0,66688.0,0.002913]
[1722312288287,0.82810076,66689.0,66688.0,0.150513]
[1722312288561,0.80257236,66689.0,66688.0,0.150513]
[1722312288888,0.70257236,66689.0,66688.0,0.150513]
[1722312289291,0.7260951,66689.0,66688.0,0.150513]
[1722312289734,0.70257236,66689.0,66688.0,0.150513]
[1722312290067,0.81984437,66689.0,66688.0,0.150513]
[1722312290269,1.26646728,66689.0,66688.0,0.150513]
[1722312290394,1.22039641,66689.0,66688.0,0.150513]
[1722312290994,1.24039641,66689.0,66688.0,0.150513]
[1722312291196,1.26616888,66689.0,66688.0,0.002913]
[1722312291615,1.4008193,66689.0,66688.0,0.002913]
[1722312291821,1.26616888,66689.0,66688.0,0.002913]
[1722312292284,1.24039641,66689.0,66688.0,0.002913]
[1722312292469,1.2891876,66689.0,66688.0,0.002913]
[1722312292668,1.5291066,66689.0,66688.0,0.002913]
[1722312292865,1.2891876,66689.0,66688.0,0.002913]
[1722312293426,0.869793,66683.0,66678.0,0.061]
[1722312293586,1.28944241,66683.0,66679.0,0.0015542]
[1722312293783,1.66404675,66683.0,66679.0,0.0015542]
[1722312293983,1.66404675,66683.0,66678.0,0.061]
[1722312294795,1.58869959,66683.0,66678.0,0.061]
[1722312295184,1.58869959,66683.0,66679.0,0.0015542]
[1722312295547,1.5704165,66683.0,66682.0,0.001913]
[1722312295821,1.59559241,66683.0,66682.0,0.001913]
[1722312296153,1.57559241,66683.0,66682.0,0.001913]
[1722312296352,1.74628673,66683.0,66682.0,0.001913]
[1722312296812,1.75328673,66683.0,66682.0,0.002913]
[1722312297223,1.7768131,66683.0,66682.0,0.002913]
[1722312298265,1.61863939,66683.0,66682.0,0.002913]
[1722312298879,1.61854642,66683.0,66682.0,0.002913]
[1722312299059,1.75319376,66683.0,66682.0,0.002913]
[1722312299263,1.59346348,66683.0,66682.0,0.002913]
[1722312299438,1.61837493,66683.0,66682.0,0.002913]
[1722312300062,1.61837493,66683.0,66659.0,0.0015542]
[1722312300063,0.60004,66662.0,66661.0,0.0751]
[1722312300268,0.60004,66662.0,66661.0,0.1358]
[1722312300269,0.81332645,66662.0,66661.0,0.1358]
[1722312300466,0.48771045,66662.0,66661.0,0.1358]
[1722312300792,0.68284212,66662.0,66661.0,0.1358]
[1722312301015,0.72772732,66662.0,66661.0,0.1358]
[1722312301213,0.72772727,66662.0,66661.0,0.1358]
[1722312301348,0.72972727,66662.0,66661.0,0.1358]
[1722312301549,0.75325639,66662.0,66661.0,0.1358]
[1722312301868,0.22833924,66662.0,66661.0,0.1358]
[1722312302081,0.02552912,66662.0,66661.0,0.1358]
[1722312302295,0.09144698,66662.0,66661.0,0.1358]
[1722312302497,0.02552912,66662.0,66661.0,0.4973842]
[1722312302669,0.009,66662.0,66661.0,0.7384042]
[1722312302869,0.009,66662.0,66661.0,0.49683]